[Event "FIDE World Rapid Chess Championship 2021"]
[White "Dubov, Daniil"]
[Black "Socko, Bartosz"]
[WhiteFideId "24126055"]
[BlackFideId "1107038"]
[WhiteElo "2735"]
[BlackElo "2562"]
[Result "1-0"]
[Round "04"]
[TimeControl "900+10"]
[Date "2021.12.26"]
[WhiteClock "0:09:44"]
[BlackClock "0:01:54"]

1. c4 {[%clk 0:15:24]}  e6 {[%clk 0:15:18]} 2. Nc3 {[%clk 0:15:24]}  Bb4 {[%clk 0:15:18]} 3. Qc2 {[%clk 0:15:24]}  b6 {[%clk 0:15:18]} 4. a3 {[%clk 0:15:24]}  Bxc3 {[%clk 0:15:18]} 5. Qxc3 {[%clk 0:15:24]}  Nf6 {[%clk 0:15:18]} 6. Nf3 {[%clk 0:15:24]}  Bb7 {[%clk 0:15:18]} 7. g3 {[%clk 0:15:24]}  O-O {[%clk 0:15:18]} 8. Bg2 {[%clk 0:15:24]}  c5 {[%clk 0:15:18]} 9. O-O {[%clk 0:15:24]}  d5 {[%clk 0:15:18]} 10. b4 {[%clk 0:15:36]}  Nbd7 {[%clk 0:15:05]} 11. d3 {[%clk 0:15:36]}  Rc8 {[%clk 0:15:05]} 12. b5 {[%clk 0:15:36]}  d4 {[%clk 0:15:05]} 13. Qb2 {[%clk 0:14:38]}  e5 {[%clk 0:14:08]} 14. e4 {[%clk 0:14:38]}  dxe3 {[%clk 0:14:08]} 15. Bxe3 {[%clk 0:14:38]}  Re8 {[%clk 0:11:44]} 16. Rfe1 {[%clk 0:14:54]}  Qc7 {[%clk 0:11:44]} 17. a4 {[%clk 0:14:51]}  Nf8 {[%clk 0:09:40]} 18. a5 {[%clk 0:14:35]}  Bxf3 {[%clk 0:09:37]} 19. Bxf3 {[%clk 0:14:35]}  Ne6 {[%clk 0:09:37]} 20. Ra3 {[%clk 0:14:15]}  Rcd8 {[%clk 0:07:48]} 21. Bc6 {[%clk 0:14:15]}  Re7 {[%clk 0:07:48]} 22. Rea1 {[%clk 0:14:15]}  Nd4 {[%clk 0:07:03]} 23. Bxd4 {[%clk 0:12:19]}  exd4 {[%clk 0:07:03]} 24. axb6 {[%clk 0:12:19]}  axb6 {[%clk 0:07:03]} 25. Ra8 {[%clk 0:12:19]}  Rf8 {[%clk 0:07:03]} 26. Rxf8+ {[%clk 0:12:19]}  Kxf8 {[%clk 0:07:03]} 27. Ra8+ {[%clk 0:12:47]}  Ne8 {[%clk 0:05:47]} 28. Qd2 {[%clk 0:12:47]}  f6 {[%clk 0:05:47]} 29. Qf4 {[%clk 0:12:50]}  Qxf4 {[%clk 0:05:47]} 30. gxf4 {[%clk 0:12:50]}  Kf7 {[%clk 0:05:47]} 31. Rb8 {[%clk 0:11:48]}  Re1+ {[%clk 0:04:38]} 32. Kg2 {[%clk 0:11:48]}  Nd6 {[%clk 0:04:38]} 33. Rxb6 {[%clk 0:11:48]}  Nf5 {[%clk 0:04:38]} 34. Rb7+ {[%clk 0:11:48]}  Re7 {[%clk 0:03:22]} 35. b6 {[%clk 0:11:31]}  Ke6 {[%clk 0:03:22]} 36. Rb8 {[%clk 0:11:31]}  Nd6 {[%clk 0:03:22]} 37. Rd8 {[%clk 0:11:15]}  Nb7 {[%clk 0:01:24]} 38. Bd5+ {[%clk 0:11:15]}  Kf5 {[%clk 0:01:24]} 39. Ra8 {[%clk 0:11:15]}  Nd6 {[%clk 0:01:24]} 40. Kf3 {[%clk 0:11:15]}  g5 {[%clk 0:01:24]} 41. fxg5 {[%clk 0:11:15]}  fxg5 {[%clk 0:01:24]} 42. b7 {[%clk 0:09:45]}  g4+ {[%clk 0:01:46]} 43. Kg2 {[%clk 0:09:45]}  Rxb7 {[%clk 0:01:54]} 44. Bxb7 {[%clk 0:09:44]}  Nxb7 {[%clk 0:01:54]} 45. Rc8 {[%clk 0:09:44]} 1-0


[Site "http://www.Chess.com"]

[Event "FIDE World Rapid Chess Championship 2021"]
[White "Jumabayev, Rinat"]
[Black "Salem, A.R. Saleh"]
[WhiteFideId "13702661"]
[BlackFideId "9301348"]
[WhiteElo "2562"]
[BlackElo "2729"]
[Result "1-0"]
[Round "04"]
[TimeControl "900+10"]
[Date "2021.12.26"]
[WhiteClock "0:00:46"]
[BlackClock "0:00:08"]

1. d4 {[%clk 0:15:28]}  d5 {[%clk 0:15:28]} 2. c4 {[%clk 0:15:28]}  e6 {[%clk 0:15:28]} 3. Nc3 {[%clk 0:15:28]}  Nf6 {[%clk 0:15:28]} 4. cxd5 {[%clk 0:15:28]}  exd5 {[%clk 0:15:28]} 5. Bg5 {[%clk 0:15:28]}  c6 {[%clk 0:15:28]} 6. e3 {[%clk 0:15:28]}  h6 {[%clk 0:15:28]} 7. Bh4 {[%clk 0:15:28]}  Be7 {[%clk 0:15:28]} 8. Bd3 {[%clk 0:15:28]}  O-O {[%clk 0:15:28]} 9. Nge2 {[%clk 0:15:28]}  Nbd7 {[%clk 0:15:28]} 10. Qc2 {[%clk 0:15:28]}  Re8 {[%clk 0:15:28]} 11. O-O {[%clk 0:15:28]}  Nh5 {[%clk 0:15:28]} 12. Bxe7 {[%clk 0:15:28]}  Qxe7 {[%clk 0:17:02]} 13. Rae1 {[%clk 0:15:36]}  Nf8 {[%clk 0:17:02]} 14. Nc1 {[%clk 0:15:36]}  Bd7 {[%clk 0:17:02]} 15. f3 {[%clk 0:15:36]}  Rad8 {[%clk 0:17:02]} 16. Qf2 {[%clk 0:15:36]}  Bc8 {[%clk 0:17:02]} 17. a3 {[%clk 0:15:36]}  Nf6 {[%clk 0:17:08]} 18. b4 {[%clk 0:15:36]}  a5 {[%clk 0:17:08]} 19. Qb2 {[%clk 0:15:09]}  axb4 {[%clk 0:15:43]} 20. axb4 {[%clk 0:15:09]}  b5 {[%clk 0:15:43]} 21. Qa3 {[%clk 0:15:09]}  Rd7 {[%clk 0:15:19]} 22. Nb3 {[%clk 0:14:21]}  Ra7 {[%clk 0:15:19]} 23. Na5 {[%clk 0:14:21]}  Qd6 {[%clk 0:15:19]} 24. Qb2 {[%clk 0:14:21]}  Rae7 {[%clk 0:15:19]} 25. Qd2 {[%clk 0:14:25]}  Bd7 {[%clk 0:11:40]} 26. Na2 {[%clk 0:14:25]}  Ne6 {[%clk 0:11:40]} 27. Nc1 {[%clk 0:12:45]}  h5 {[%clk 0:11:06]} 28. Bc2 {[%clk 0:12:45]}  Bc8 {[%clk 0:06:34]} 29. Nd3 {[%clk 0:11:49]}  Nd7 {[%clk 0:06:34]} 30. Ne5 {[%clk 0:06:58]}  Nd8 {[%clk 0:06:01]} 31. f4 {[%clk 0:06:58]}  Nf6 {[%clk 0:06:01]} 32. Qc3 {[%clk 0:06:58]}  Rc7 {[%clk 0:06:01]} 33. h3 {[%clk 0:06:58]}  Nb7 {[%clk 0:04:19]} 34. Nxb7 {[%clk 0:06:36]}  Bxb7 {[%clk 0:04:19]} 35. Ra1 {[%clk 0:06:36]}  Bc8 {[%clk 0:03:00]} 36. Ra8 {[%clk 0:05:45]}  Nd7 {[%clk 0:03:00]} 37. Qd3 {[%clk 0:05:45]}  Nf8 {[%clk 0:03:00]} 38. Qa3 {[%clk 0:05:08]}  Rce7 {[%clk 0:01:22]} 39. Re1 {[%clk 0:05:08]}  g6 {[%clk 0:01:22]} 40. Qc3 {[%clk 0:05:08]}  Kg7 {[%clk 0:01:23]} 41. Kf2 {[%clk 0:03:33]}  Bd7 {[%clk 0:00:00]} 42. Ra7 {[%clk 0:01:47]}  f6 {[%clk 0:00:00]} 43. Nf3 {[%clk 0:01:47]}  Bc8 {[%clk 0:00:00]} 44. Rxe7+ {[%clk 0:01:47]}  Rxe7 {[%clk 0:00:00]} 45. Ra1 {[%clk 0:01:47]}  Nd7 {[%clk 0:00:00]} 46. Nh4 {[%clk 0:01:47]}  Nf8 {[%clk 0:00:00]} 47. Ra8 {[%clk 0:01:47]}  Rc7 {[%clk 0:00:00]} 48. Qd3 {[%clk 0:01:08]}  f5 {[%clk 0:00:16]} 49. Qc3 {[%clk 0:01:08]}  Be6 {[%clk 0:00:35]} 50. Qc5 {[%clk 0:00:30]}  Qxc5 {[%clk 0:00:35]} 51. dxc5 {[%clk 0:00:30]}  d4 {[%clk 0:00:35]} 52. e4 {[%clk 0:00:30]}  fxe4 {[%clk 0:00:35]} 53. Bxe4 {[%clk 0:00:30]}  Bc4 {[%clk 0:00:35]} 54. Nf3 {[%clk 0:00:30]}  Ne6 {[%clk 0:00:35]} 55. g3 {[%clk 0:00:30]}  Kf6 {[%clk 0:00:00]} 56. Ra6 {[%clk 0:00:41]}  d3 {[%clk 0:00:00]} 57. Ke3 {[%clk 0:00:41]}  h4 {[%clk 0:00:00]} 58. g4 {[%clk 0:00:41]}  Re7 {[%clk 0:00:00]} 59. Rxc6 {[%clk 0:00:41]}  Kg7 {[%clk 0:00:00]} 60. Rd6 {[%clk 0:00:41]}  Nc7 {[%clk 0:00:00]} 61. Rxg6+ {[%clk 0:00:41]}  Kf8 {[%clk 0:00:00]} 62. Ne5 {[%clk 0:00:41]}  Ne6 {[%clk 0:00:00]} 63. c6 {[%clk 0:00:41]}  d2 {[%clk 0:00:00]} 64. Kxd2 {[%clk 0:00:41]}  Nxf4 {[%clk 0:00:08]} 65. Rf6+ {[%clk 0:00:46]}  Ke8 {[%clk 0:00:08]} 66. c7 {[%clk 0:00:46]} 1-0


[Site "http://www.Chess.com"]

[Event "FIDE World Rapid Chess Championship 2021"]
[White "Theodorou, Nikolas"]
[Black "Fedoseev, Vladimir"]
[WhiteFideId "4262875"]
[BlackFideId "24130737"]
[WhiteElo "2559"]
[BlackElo "2692"]
[Result "0-1"]
[Round "04"]
[TimeControl "900+10"]
[Date "2021.12.26"]
[WhiteClock "0:00:39"]
[BlackClock "0:00:41"]

1. d4 {[%clk 0:15:22]}  Nf6 {[%clk 0:15:27]} 2. Nf3 {[%clk 0:15:22]}  e6 {[%clk 0:15:27]} 3. c4 {[%clk 0:15:22]}  h6 {[%clk 0:15:27]} 4. g3 {[%clk 0:15:22]}  Bb4+ {[%clk 0:15:27]} 5. Bd2 {[%clk 0:15:22]}  Be7 {[%clk 0:15:27]} 6. Bg2 {[%clk 0:15:22]}  O-O {[%clk 0:15:27]} 7. O-O {[%clk 0:15:22]}  d5 {[%clk 0:15:27]} 8. Qc2 {[%clk 0:15:22]}  c6 {[%clk 0:15:27]} 9. Nc3 {[%clk 0:15:22]}  dxc4 {[%clk 0:16:13]} 10. a4 {[%clk 0:14:32]}  a5 {[%clk 0:16:13]} 11. Rfd1 {[%clk 0:14:32]}  Nbd7 {[%clk 0:14:32]} 12. Ne5 {[%clk 0:13:53]}  Nxe5 {[%clk 0:12:33]} 13. dxe5 {[%clk 0:13:53]}  Nd5 {[%clk 0:12:33]} 14. Ne4 {[%clk 0:13:53]}  Qc7 {[%clk 0:12:33]} 15. Nd6 {[%clk 0:10:28]}  Bxd6 {[%clk 0:12:37]} 16. exd6 {[%clk 0:10:28]}  Qxd6 {[%clk 0:12:37]} 17. Qxc4 {[%clk 0:10:28]}  e5 {[%clk 0:12:24]} 18. Rac1 {[%clk 0:09:30]}  Be6 {[%clk 0:12:24]} 19. Qc5 {[%clk 0:09:30]}  Qxc5 {[%clk 0:10:14]} 20. Rxc5 {[%clk 0:09:19]}  Nb6 {[%clk 0:09:34]} 21. Ra1 {[%clk 0:09:19]}  Bb3 {[%clk 0:09:34]} 22. Ra3 {[%clk 0:07:48]}  Bxa4 {[%clk 0:05:31]} 23. Rxa5 {[%clk 0:07:11]}  Bb5 {[%clk 0:04:19]} 24. Rxa8 {[%clk 0:06:31]}  Rxa8 {[%clk 0:04:19]} 25. Rxa8+ {[%clk 0:06:31]}  Nxa8 {[%clk 0:04:19]} 26. e4 {[%clk 0:06:31]}  f6 {[%clk 0:04:19]} 27. f4 {[%clk 0:06:31]}  Kf7 {[%clk 0:04:07]} 28. Kf2 {[%clk 0:05:25]}  Nb6 {[%clk 0:04:07]} 29. b3 {[%clk 0:05:25]}  Nd7 {[%clk 0:02:53]} 30. Bb4 {[%clk 0:03:58]}  Bd3 {[%clk 0:02:53]} 31. Ke3 {[%clk 0:03:58]}  Bc2 {[%clk 0:02:25]} 32. Bh3 {[%clk 0:02:32]}  Nf8 {[%clk 0:02:25]} 33. Bc8 {[%clk 0:02:36]}  b6 {[%clk 0:02:25]} 34. Bb7 {[%clk 0:02:36]}  c5 {[%clk 0:02:25]} 35. Bd5+ {[%clk 0:02:36]}  Ke7 {[%clk 0:02:25]} 36. Bc3 {[%clk 0:02:36]}  Kd6 {[%clk 0:02:09]} 37. b4 {[%clk 0:01:27]}  Nd7 {[%clk 0:02:09]} 38. bxc5+ {[%clk 0:01:34]}  bxc5 {[%clk 0:02:09]} 39. Bf7 {[%clk 0:01:34]}  Nb8 {[%clk 0:02:09]} 40. Be8 {[%clk 0:01:34]}  Na6 {[%clk 0:02:09]} 41. h4 {[%clk 0:01:34]}  Nc7 {[%clk 0:02:09]} 42. Bf7 {[%clk 0:00:49]}  Nb5 {[%clk 0:01:56]} 43. fxe5+ {[%clk 0:00:51]}  fxe5 {[%clk 0:02:02]} 44. Ba5 {[%clk 0:00:51]}  Nd4 {[%clk 0:02:02]} 45. g4 {[%clk 0:00:51]}  Bb3 {[%clk 0:02:02]} 46. Bg6 {[%clk 0:00:51]}  Bd1 {[%clk 0:02:02]} 47. Bf5 {[%clk 0:00:51]}  Ba4 {[%clk 0:01:02]} 48. g5 {[%clk 0:00:32]}  hxg5 {[%clk 0:01:02]} 49. hxg5 {[%clk 0:00:32]}  Bd7 {[%clk 0:01:02]} 50. Bh7 {[%clk 0:00:35]}  Ne6 {[%clk 0:01:12]} 51. g6 {[%clk 0:00:35]}  Be8 {[%clk 0:01:12]} 52. Be1 {[%clk 0:00:35]}  Nf4 {[%clk 0:01:12]} 53. Bg3 {[%clk 0:00:35]}  Bxg6 {[%clk 0:01:12]} 54. Bg8 {[%clk 0:00:35]}  Nh5 {[%clk 0:01:12]} 55. Bh4 {[%clk 0:00:35]}  Nf6 {[%clk 0:01:12]} 56. Bb3 {[%clk 0:00:35]}  Be8 {[%clk 0:01:12]} 57. Bc2 {[%clk 0:00:35]}  Bc6 {[%clk 0:01:12]} 58. Bg5 {[%clk 0:00:35]}  c4 {[%clk 0:01:10]} 59. Bh4 {[%clk 0:00:46]}  Kc5 {[%clk 0:01:10]} 60. Be1 {[%clk 0:00:46]}  g5 {[%clk 0:01:10]} 61. Ba5 {[%clk 0:00:46]}  Kd6 {[%clk 0:01:10]} 62. Bd8 {[%clk 0:00:46]}  Ke6 {[%clk 0:01:10]} 63. Bc7 {[%clk 0:00:46]}  g4 {[%clk 0:01:10]} 64. Bd8 {[%clk 0:00:46]}  g3 {[%clk 0:01:10]} 65. Bxf6 {[%clk 0:00:35]}  Kxf6 {[%clk 0:00:30]} 66. Kf3 {[%clk 0:00:35]}  Ke6 {[%clk 0:00:30]} 67. Kxg3 {[%clk 0:00:35]}  Kd6 {[%clk 0:00:30]} 68. Kf3 {[%clk 0:00:39]}  Kc5 {[%clk 0:00:41]} 69. Ke3 {[%clk 0:00:39]}  Kb4 {[%clk 0:00:41]} 70. Kd2 {[%clk 0:00:39]}  Ba4 {[%clk 0:00:41]} 71. Bb1 {[%clk 0:00:39]}  Bb3 {[%clk 0:00:41]} 72. Kc1 {[%clk 0:00:39]}  Ka3 {[%clk 0:00:41]} 0-1


[Site "http://www.Chess.com"]

[Event "FIDE World Rapid Chess Championship 2021"]
[White "Onyshchuk, Volodymyr"]
[Black "Demidov, Mikhail"]
[WhiteFideId "14114038"]
[BlackFideId "4197143"]
[WhiteElo "2687"]
[BlackElo "2544"]
[Result "1/2-1/2"]
[Round "04"]
[TimeControl "900+10"]
[Date "2021.12.26"]
[WhiteClock "0:00:45"]
[BlackClock "0:00:22"]

1. Nf3 {[%clk 0:15:18]}  g6 {[%clk 0:15:00]} 2. g3 {[%clk 0:15:18]}  Bg7 {[%clk 0:15:00]} 3. Bg2 {[%clk 0:15:18]}  e5 {[%clk 0:15:00]} 4. O-O {[%clk 0:15:18]}  d5 {[%clk 0:14:15]} 5. d3 {[%clk 0:14:40]}  Ne7 {[%clk 0:14:15]} 6. Nbd2 {[%clk 0:14:40]}  O-O {[%clk 0:14:15]} 7. e4 {[%clk 0:14:40]}  dxe4 {[%clk 0:14:15]} 8. dxe4 {[%clk 0:14:40]}  Nec6 {[%clk 0:12:53]} 9. c3 {[%clk 0:14:52]}  a5 {[%clk 0:12:53]} 10. Qc2 {[%clk 0:14:52]}  Be6 {[%clk 0:12:53]} 11. Rd1 {[%clk 0:14:52]}  Qe7 {[%clk 0:12:53]} 12. Nf1 {[%clk 0:14:38]}  Na7 {[%clk 0:10:42]} 13. Ne3 {[%clk 0:14:32]}  c6 {[%clk 0:10:42]} 14. h4 {[%clk 0:14:32]}  f6 {[%clk 0:09:03]} 15. h5 {[%clk 0:14:16]}  Na6 {[%clk 0:09:03]} 16. Nh4 {[%clk 0:13:53]}  Qf7 {[%clk 0:07:14]} 17. b3 {[%clk 0:13:53]}  Rfd8 {[%clk 0:07:14]} 18. Rxd8+ {[%clk 0:13:53]}  Rxd8 {[%clk 0:07:14]} 19. Bf1 {[%clk 0:13:53]}  Nb5 {[%clk 0:07:11]} 20. Nc4 {[%clk 0:11:45]}  a4 {[%clk 0:05:13]} 21. Be3 {[%clk 0:11:02]}  gxh5 {[%clk 0:05:13]} 22. Na5 {[%clk 0:11:06]}  a3 {[%clk 0:04:27]} 23. Nf5 {[%clk 0:09:08]}  Kh8 {[%clk 0:04:27]} 24. Bc4 {[%clk 0:09:08]}  Bxc4 {[%clk 0:03:07]} 25. bxc4 {[%clk 0:08:31]}  Nd6 {[%clk 0:02:52]} 26. Rd1 {[%clk 0:08:31]}  Qc7 {[%clk 0:02:52]} 27. Nxd6 {[%clk 0:08:31]}  Rxd6 {[%clk 0:01:42]} 28. Nxb7 {[%clk 0:07:54]}  Rxd1+ {[%clk 0:01:42]} 29. Qxd1 {[%clk 0:07:54]}  Bf8 {[%clk 0:01:42]} 30. Nd8 {[%clk 0:07:20]}  Kg8 {[%clk 0:00:00]} 31. Ne6 {[%clk 0:07:20]}  Qd6 {[%clk 0:00:00]} 32. Qxd6 {[%clk 0:04:02]}  Bxd6 {[%clk 0:00:43]} 33. Nd8 {[%clk 0:04:02]}  Bc5 {[%clk 0:00:43]} 34. Bc1 {[%clk 0:04:11]}  Nb8 {[%clk 0:00:43]} 35. Kg2 {[%clk 0:04:11]}  Be7 {[%clk 0:00:43]} 36. Nb7 {[%clk 0:04:11]}  Nd7 {[%clk 0:00:43]} 37. Na5 {[%clk 0:03:29]}  Nb8 {[%clk 0:00:24]} 38. f4 {[%clk 0:03:29]}  Kf7 {[%clk 0:00:09]} 39. f5 {[%clk 0:03:29]}  Ke8 {[%clk 0:00:09]} 40. Kh3 {[%clk 0:03:29]}  Bf8 {[%clk 0:00:09]} 41. Kh4 {[%clk 0:03:29]}  Nd7 {[%clk 0:00:09]} 42. Be3 {[%clk 0:03:29]}  Bc5 {[%clk 0:00:09]} 43. Bd2 {[%clk 0:02:23]}  Bf2 {[%clk 0:00:23]} 44. Nb3 {[%clk 0:02:23]}  Nb6 {[%clk 0:00:19]} 45. c5 {[%clk 0:02:23]}  Nc4 {[%clk 0:00:19]} 46. Bh6 {[%clk 0:02:23]}  Kf7 {[%clk 0:00:19]} 47. Nd2 {[%clk 0:00:57]}  Nb2 {[%clk 0:00:25]} 48. Nb1 {[%clk 0:00:57]}  Nc4 {[%clk 0:00:36]} 49. Bc1 {[%clk 0:00:56]}  Bxc5 {[%clk 0:00:36]} 50. Kxh5 {[%clk 0:00:56]}  Nd6 {[%clk 0:00:20]} 51. Nd2 {[%clk 0:01:02]}  Be3 {[%clk 0:00:20]} 52. Bxa3 {[%clk 0:01:02]}  Nb5 {[%clk 0:00:20]} 53. Nc4 {[%clk 0:01:02]}  Nxa3 {[%clk 0:00:20]} 54. Nxa3 {[%clk 0:01:02]}  Ke7 {[%clk 0:00:20]} 55. Nc4 {[%clk 0:01:02]}  Bc1 {[%clk 0:00:20]} 56. a4 {[%clk 0:01:02]}  Kd7 {[%clk 0:00:20]} 57. g4 {[%clk 0:01:02]}  Bf4 {[%clk 0:00:20]} 58. a5 {[%clk 0:01:03]}  Kc7 {[%clk 0:00:26]} 59. a6 {[%clk 0:01:03]}  Bc1 {[%clk 0:00:26]} 60. g5 {[%clk 0:01:03]}  Bxg5 {[%clk 0:00:26]} 61. Nxe5 {[%clk 0:01:03]}  Bd2 {[%clk 0:00:26]} 62. Nd3 {[%clk 0:01:03]}  Bxc3 {[%clk 0:00:26]} 63. e5 {[%clk 0:01:03]}  fxe5 {[%clk 0:00:26]} 64. f6 {[%clk 0:01:03]}  e4 {[%clk 0:00:26]} 65. f7 {[%clk 0:01:03]}  Bg7 {[%clk 0:00:26]} 66. Nc5 {[%clk 0:01:03]}  e3 {[%clk 0:00:26]} 67. a7 {[%clk 0:00:52]}  e2 {[%clk 0:00:50]} 68. a8=Q {[%clk 0:00:33]}  e1=Q {[%clk 0:00:56]} 69. Qa7+ {[%clk 0:00:34]}  Kd6 {[%clk 0:00:56]} 70. Nb7+ {[%clk 0:00:34]}  Kc7 {[%clk 0:00:56]} 71. Na5+ {[%clk 0:00:34]}  Kd6 {[%clk 0:00:56]} 72. Qb8+ {[%clk 0:00:34]}  Kc5 {[%clk 0:00:56]} 73. Nb7+ {[%clk 0:00:34]}  Kc4 {[%clk 0:00:18]} 74. Qf4+ {[%clk 0:00:26]}  Kb5 {[%clk 0:00:10]} 75. Nd6+ {[%clk 0:00:29]}  Kb6 {[%clk 0:00:10]} 76. Ne4 {[%clk 0:00:29]}  Qh1+ {[%clk 0:00:10]} 77. Kg4 {[%clk 0:00:29]}  Qd1+ {[%clk 0:00:10]} 78. Kg3 {[%clk 0:00:29]}  Qd3+ {[%clk 0:00:10]} 79. Kg2 {[%clk 0:00:29]}  Qc2+ {[%clk 0:00:10]} 80. Kh3 {[%clk 0:00:29]}  Qb3+ {[%clk 0:00:10]} 81. Ng3 {[%clk 0:00:29]}  Qe6+ {[%clk 0:00:10]} 82. Kh2 {[%clk 0:00:29]}  Qa2+ {[%clk 0:00:10]} 83. Kg1 {[%clk 0:00:29]}  Qa1+ {[%clk 0:00:10]} 84. Kg2 {[%clk 0:00:29]}  Qa2+ {[%clk 0:00:10]} 85. Kf3 {[%clk 0:00:46]}  Qd5+ {[%clk 0:00:41]} 86. Ne4 {[%clk 0:00:49]}  Qd1+ {[%clk 0:00:50]} 87. Kg2 {[%clk 0:00:49]}  Qc2+ {[%clk 0:00:50]} 88. Kh3 {[%clk 0:00:49]}  Qb3+ {[%clk 0:00:50]} 89. Kh4 {[%clk 0:00:49]}  Qd5 {[%clk 0:00:50]} 90. Ng5 {[%clk 0:00:49]}  Qh1+ {[%clk 0:00:50]} 91. Kg4 {[%clk 0:00:49]}  Qg2+ {[%clk 0:00:50]} 92. Kh5 {[%clk 0:00:49]}  Qh1+ {[%clk 0:00:22]} 93. Kg4 {[%clk 0:00:45]} 1/2-1/2


[Site "http://www.Chess.com"]

[Event "FIDE World Rapid Chess Championship 2021"]
[White "Bartel, Mateusz"]
[Black "Paravyan, David"]
[WhiteFideId "1112635"]
[BlackFideId "4194985"]
[WhiteElo "2543"]
[BlackElo "2671"]
[Result "1/2-1/2"]
[Round "04"]
[TimeControl "900+10"]
[Date "2021.12.26"]
[WhiteClock "0:01:54"]
[BlackClock "0:00:57"]

1. e4 {[%clk 0:15:23]}  e5 {[%clk 0:15:28]} 2. Nf3 {[%clk 0:15:23]}  Nc6 {[%clk 0:15:28]} 3. Bb5 {[%clk 0:15:23]}  Nf6 {[%clk 0:15:28]} 4. d3 {[%clk 0:15:23]}  Bc5 {[%clk 0:15:28]} 5. Bxc6 {[%clk 0:15:23]}  dxc6 {[%clk 0:15:28]} 6. O-O {[%clk 0:15:23]}  Qe7 {[%clk 0:15:28]} 7. Nbd2 {[%clk 0:15:23]}  Bg4 {[%clk 0:15:28]} 8. h3 {[%clk 0:13:53]}  Bh5 {[%clk 0:16:09]} 9. Nc4 {[%clk 0:11:49]}  Nd7 {[%clk 0:15:46]} 10. a3 {[%clk 0:11:49]}  O-O-O {[%clk 0:15:46]} 11. b4 {[%clk 0:11:49]}  Bd4 {[%clk 0:15:46]} 12. Rb1 {[%clk 0:11:49]}  f5 {[%clk 0:15:48]} 13. exf5 {[%clk 0:11:30]}  e4 {[%clk 0:09:43]} 14. dxe4 {[%clk 0:11:30]}  Nf6 {[%clk 0:09:43]} 15. Ncd2 {[%clk 0:06:54]}  Bc3 {[%clk 0:10:00]} 16. Qe2 {[%clk 0:06:54]}  Bxd2 {[%clk 0:06:06]} 17. Bxd2 {[%clk 0:05:47]}  Qxe4 {[%clk 0:06:06]} 18. Qxe4 {[%clk 0:05:59]}  Nxe4 {[%clk 0:06:17]} 19. Bg5 {[%clk 0:03:09]}  Bxf3 {[%clk 0:06:17]} 20. Bxd8 {[%clk 0:03:09]}  Rxd8 {[%clk 0:06:17]} 21. gxf3 {[%clk 0:03:09]}  Nd2 {[%clk 0:06:17]} 22. Rbe1 {[%clk 0:03:09]}  Nxf3+ {[%clk 0:06:31]} 23. Kg2 {[%clk 0:02:56]}  Nxe1+ {[%clk 0:06:31]} 24. Rxe1 {[%clk 0:02:56]}  b5 {[%clk 0:06:31]} 25. Kf3 {[%clk 0:02:14]}  Rd5 {[%clk 0:03:18]} 26. Ke4 {[%clk 0:02:14]}  Rd7 {[%clk 0:03:18]} 27. Rg1 {[%clk 0:02:14]}  Re7+ {[%clk 0:01:37]} 28. Kf4 {[%clk 0:02:14]}  Kd7 {[%clk 0:01:37]} 29. h4 {[%clk 0:02:14]}  Ke8 {[%clk 0:01:37]} 30. Rg3 {[%clk 0:02:14]}  Rd7 {[%clk 0:01:37]} 31. Rc3 {[%clk 0:02:36]}  Rd6 {[%clk 0:00:12]} 32. Rc5 {[%clk 0:02:36]}  Kd7 {[%clk 0:00:20]} 33. Rc3 {[%clk 0:01:36]}  Ke7 {[%clk 0:00:20]} 34. Ke5 {[%clk 0:01:36]}  Rd5+ {[%clk 0:00:20]} 35. Ke4 {[%clk 0:01:36]}  Rd6 {[%clk 0:00:20]} 36. Ke5 {[%clk 0:01:36]}  Rd5+ {[%clk 0:00:20]} 37. Ke4 {[%clk 0:01:36]}  Rd6 {[%clk 0:00:20]} 38. Ke5 {[%clk 0:00:03]}  Rh6 {[%clk 0:00:41]} 39. f4 {[%clk 0:00:03]}  Rxh4 {[%clk 0:00:41]} 40. Rxc6 {[%clk 0:00:03]}  Kd7 {[%clk 0:00:41]} 41. Rc5 {[%clk 0:00:03]}  c6 {[%clk 0:00:41]} 42. c4 {[%clk 0:00:03]}  bxc4 {[%clk 0:00:41]} 43. Rxc4 {[%clk 0:00:03]}  Rh5 {[%clk 0:00:41]} 44. Ke4 {[%clk 0:00:03]}  Rh3 {[%clk 0:00:41]} 45. a4 {[%clk 0:00:03]}  h5 {[%clk 0:00:41]} 46. b5 {[%clk 0:00:03]}  cxb5 {[%clk 0:00:41]} 47. axb5 {[%clk 0:00:03]}  Ra3 {[%clk 0:00:30]} 48. f6 {[%clk 0:00:53]}  gxf6 {[%clk 0:00:30]} 49. Kf5 {[%clk 0:01:14]}  h4 {[%clk 0:00:30]} 50. Kxf6 {[%clk 0:01:14]}  h3 {[%clk 0:00:48]} 51. f5 {[%clk 0:01:58]}  h2 {[%clk 0:00:48]} 52. Rh4 {[%clk 0:01:58]}  Ra2 {[%clk 0:00:48]} 53. Ke5 {[%clk 0:01:58]}  Re2+ {[%clk 0:00:48]} 54. Kf4 {[%clk 0:01:58]}  Ke7 {[%clk 0:00:48]} 55. Kf3 {[%clk 0:01:58]}  Rb2 {[%clk 0:00:48]} 56. Rh6 {[%clk 0:01:58]}  Kf7 {[%clk 0:00:48]} 57. f6 {[%clk 0:01:58]}  Ke6 {[%clk 0:00:48]} 58. Kg3 {[%clk 0:01:58]}  Rxb5 {[%clk 0:00:48]} 59. Rxh2 {[%clk 0:01:58]}  Kxf6 {[%clk 0:00:48]} 60. Kf4 {[%clk 0:01:58]}  Rb4+ {[%clk 0:00:48]} 61. Ke3 {[%clk 0:01:58]}  Kg5 {[%clk 0:00:48]} 62. Kd3 {[%clk 0:01:54]}  Rh4 {[%clk 0:00:57]} 63. Rxh4 {[%clk 0:01:54]} 1/2-1/2


[Site "http://www.Chess.com"]

[Event "FIDE World Rapid Chess Championship 2021"]
[White "Movsesian, Sergei"]
[Black "Petrosyan, Manuel"]
[WhiteFideId "310204"]
[BlackFideId "13300857"]
[WhiteElo "2667"]
[BlackElo "2514"]
[Result "1-0"]
[Round "04"]
[TimeControl "900+10"]
[Date "2021.12.26"]
[WhiteClock "0:00:20"]
[BlackClock "0:00:07"]

1. e4 {[%clk 0:15:35]}  e5 {[%clk 0:15:27]} 2. Nf3 {[%clk 0:15:35]}  Nc6 {[%clk 0:15:27]} 3. Bb5 {[%clk 0:15:35]}  a6 {[%clk 0:15:27]} 4. Ba4 {[%clk 0:15:35]}  Nf6 {[%clk 0:15:27]} 5. O-O {[%clk 0:15:35]}  Nxe4 {[%clk 0:15:27]} 6. d4 {[%clk 0:15:35]}  b5 {[%clk 0:15:27]} 7. Bb3 {[%clk 0:15:35]}  d5 {[%clk 0:15:27]} 8. dxe5 {[%clk 0:15:35]}  Be6 {[%clk 0:15:27]} 9. c3 {[%clk 0:15:35]}  Be7 {[%clk 0:15:27]} 10. Nbd2 {[%clk 0:15:35]}  O-O {[%clk 0:14:47]} 11. Bc2 {[%clk 0:16:26]}  f5 {[%clk 0:14:47]} 12. exf6 {[%clk 0:16:26]}  Nxf6 {[%clk 0:14:47]} 13. h3 {[%clk 0:16:26]}  Qd7 {[%clk 0:14:06]} 14. Nb3 {[%clk 0:14:58]}  Bf5 {[%clk 0:13:17]} 15. Bg5 {[%clk 0:13:04]}  Bxc2 {[%clk 0:11:15]} 16. Qxc2 {[%clk 0:12:04]}  Ne4 {[%clk 0:11:15]} 17. Bxe7 {[%clk 0:12:04]}  Qxe7 {[%clk 0:08:47]} 18. Nfd2 {[%clk 0:12:07]}  Nd6 {[%clk 0:08:47]} 19. Rae1 {[%clk 0:11:26]}  Qf7 {[%clk 0:05:11]} 20. Nc5 {[%clk 0:11:01]}  a5 {[%clk 0:04:47]} 21. Nf3 {[%clk 0:10:13]}  h6 {[%clk 0:03:15]} 22. Re2 {[%clk 0:09:25]}  Rfe8 {[%clk 0:03:02]} 23. Rfe1 {[%clk 0:06:07]}  a4 {[%clk 0:02:06]} 24. Qd3 {[%clk 0:06:07]}  Rxe2 {[%clk 0:01:50]} 25. Rxe2 {[%clk 0:03:54]}  Qf5 {[%clk 0:01:33]} 26. Qd1 {[%clk 0:04:02]}  Re8 {[%clk 0:01:33]} 27. Rd2 {[%clk 0:03:07]}  Nc4 {[%clk 0:00:37]} 28. Rxd5 {[%clk 0:03:07]}  Nxb2 {[%clk 0:00:37]} 29. Qd2 {[%clk 0:03:07]}  Qb1+ {[%clk 0:00:37]} 30. Kh2 {[%clk 0:03:07]}  Nc4 {[%clk 0:00:37]} 31. Qf4 {[%clk 0:03:07]}  Nd6 {[%clk 0:00:37]} 32. Na6 {[%clk 0:03:07]}  Rf8 {[%clk 0:01:09]} 33. Qe3 {[%clk 0:01:05]}  Re8 {[%clk 0:00:38]} 34. Qc5 {[%clk 0:01:05]}  Ne7 {[%clk 0:00:38]} 35. Nxc7 {[%clk 0:01:05]}  Ne4 {[%clk 0:00:38]} 36. Qd4 {[%clk 0:01:05]}  Nc6 {[%clk 0:00:12]} 37. Qb6 {[%clk 0:00:34]}  Rf8 {[%clk 0:00:07]} 38. Qxc6 {[%clk 0:00:20]}  Nxf2 {[%clk 0:00:07]} 39. Rd2 {[%clk 0:00:20]}  Qf1 {[%clk 0:00:07]} 40. Qe6+ {[%clk 0:00:20]}  Kh8 {[%clk 0:00:07]} 41. Qe1 {[%clk 0:00:20]}  Qc4 {[%clk 0:00:07]} 42. Ne6 {[%clk 0:00:20]}  Re8 {[%clk 0:00:07]} 43. Nfd4 {[%clk 0:00:20]} 1-0


[Site "http://www.Chess.com"]